[Event "*** Titled Tuesday Blitz"]
[Site "Chess.com"]
[Date "2019.08.06"]
[Round "3"]
[White "vanea_03"]
[Black "ChainsOfFantasia"]
[Result "0-1"]
[WhiteElo "2662"]
[BlackElo "2479"]
[TimeControl "180+2"]
[EndTime "13:37:36 PDT"]
[Termination "ChainsOfFantasia won by resignation"]

1. Nf3 {[%clk 0:03:01.9]} 1... Nf6 {[%clk 0:03:00.8]} 2. g3 {[%clk 0:03:02.8]}
2... e6 {[%clk 0:03:02.7]} 3. Bg2 {[%clk 0:03:03.9]} 3... d5 {[%clk 0:03:04.6]}
4. O-O {[%clk 0:03:05.2]} 4... Be7 {[%clk 0:03:06.5]} 5. c4 {[%clk 0:03:06]}
5... O-O {[%clk 0:03:08.4]} 6. b3 {[%clk 0:03:07.6]} 6... c5 {[%clk 0:03:08.7]}
7. Bb2 {[%clk 0:03:07.8]} 7... d4 {[%clk 0:03:09.7]} 8. e3 {[%clk 0:03:08.9]}
8... Nc6 {[%clk 0:03:11]} 9. exd4 {[%clk 0:03:09.8]} 9... cxd4 {[%clk
0:03:12.9]} 10. Re1 {[%clk 0:03:11.2]} 10... Ng4 {[%clk 0:03:13.5]} 11. h3
{[%clk 0:03:09.8]} 11... Nh6 {[%clk 0:03:14.6]} 12. Ne5 {[%clk 0:03:02.1]} 12...
Nxe5 {[%clk 0:03:14.3]} 13. Rxe5 {[%clk 0:03:04]} 13... f6 {[%clk 0:03:15.8]}
14. Re1 {[%clk 0:03:03.8]} 14... Rb8 {[%clk 0:03:06.6]} 15. d3 {[%clk 0:02:56]}
15... e5 {[%clk 0:02:57.1]} 16. Ba3 {[%clk 0:02:43]} 16... Kh8 {[%clk
0:02:46.8]} 17. Bxe7 {[%clk 0:02:40.2]} 17... Qxe7 {[%clk 0:02:48.7]} 18. Nd2
{[%clk 0:02:41.9]} 18... Nf7 {[%clk 0:02:45]} 19. Rb1 {[%clk 0:02:37.2]} 19...
b5 {[%clk 0:02:42.7]} 20. Rc1 {[%clk 0:02:20.8]} 20... Bf5 {[%clk 0:02:35.2]}
21. Ne4 {[%clk 0:02:14.5]} 21... bxc4 {[%clk 0:02:29.3]} 22. dxc4 {[%clk
0:02:01]} 22... Nd6 {[%clk 0:02:18.1]} 23. Nc5 {[%clk 0:01:46.3]} 23... Rbc8
{[%clk 0:01:58.1]} 24. b4 {[%clk 0:01:43.5]} 24... a5 {[%clk 0:01:52.3]} 25. a3
{[%clk 0:01:39.1]} 25... Qf7 {[%clk 0:01:44.6]} 26. g4 {[%clk 0:01:31.2]} 26...
Bg6 {[%clk 0:01:34.2]} 27. f4 {[%clk 0:01:25.3]} 27... h5 {[%clk 0:01:13.3]} 28.
f5 {[%clk 0:01:08.9]} 28... Bh7 {[%clk 0:01:12.8]} 29. Bd5 {[%clk 0:01:06.5]}
29... Qa7 {[%clk 0:01:12.6]} 30. Qd2 {[%clk 0:01:02.9]} 30... Bg8 {[%clk
0:00:54.7]} 31. Ne6 {[%clk 0:00:41.3]} 31... Bxe6 {[%clk 0:00:51.5]} 32. fxe6
{[%clk 0:00:43.2]} 32... axb4 {[%clk 0:00:48.9]} 33. axb4 {[%clk 0:00:44.2]}
33... Qb8 {[%clk 0:00:43.6]} 34. c5 {[%clk 0:00:37.9]} 34... Nb5 {[%clk
0:00:42.2]} 35. Qd3 {[%clk 0:00:36.5]} 35... e4 {[%clk 0:00:33.4]} 36. Rxe4
{[%clk 0:00:35.2]} 36... Nc3 {[%clk 0:00:34.6]} 37. Rxc3 {[%clk 0:00:24.6]}
37... dxc3 {[%clk 0:00:35.2]} 38. e7 {[%clk 0:00:25.5]} 38... Rfe8 {[%clk
0:00:33.1]} 39. Qxc3 {[%clk 0:00:25.8]} 39... Rc7 {[%clk 0:00:30.3]} 40. Qe3
{[%clk 0:00:23.5]} 40... Qa7 {[%clk 0:00:27.2]} 41. gxh5 {[%clk 0:00:13.1]}
41... Rcxe7 {[%clk 0:00:26.8]} 42. h6 {[%clk 0:00:12.7]} 42... Rxe4 {[%clk
0:00:22.4]} 43. Bxe4 {[%clk 0:00:14.3]} 43... Qa1+ {[%clk 0:00:20.7]} 44. Kg2
{[%clk 0:00:14.5]} 44... Qe5 {[%clk 0:00:21.6]} 45. hxg7+ {[%clk 0:00:12.5]}
45... Kxg7 {[%clk 0:00:23.5]} 46. Kf3 {[%clk 0:00:11.1]} 46... Qh5+ {[%clk
0:00:21.8]} 47. Kf2 {[%clk 0:00:11.7]} 47... Qh4+ {[%clk 0:00:21.7]} 48. Kf3
{[%clk 0:00:11.4]} 48... Qxh3+ {[%clk 0:00:21.7]} 49. Kf4 {[%clk 0:00:10.1]}
49... Qxe3+ {[%clk 0:00:22.1]} 50. Kxe3 {[%clk 0:00:12]} 50... f5 {[%clk
0:00:24]} 51. c6 {[%clk 0:00:13.3]} 51... Rxe4+ {[%clk 0:00:24.4]} 52. Kd3
{[%clk 0:00:15]} 52... Kf7 {[%clk 0:00:18.8]} 53. c7 {[%clk 0:00:14.1]} 53...
Re8 {[%clk 0:00:19.2]} 54. b5 {[%clk 0:00:15.6]} 54... Ke7 {[%clk 0:00:20.1]}
55. b6 {[%clk 0:00:15.8]} 55... Kd7 {[%clk 0:00:21.3]} 0-1

[Event "*** Titled Tuesday Blitz"]
[Site "Chess.com"]
[Date "2019.08.06"]
[Round "3"]
[White "tgpgoat"]
[Black "FredddieCroderg"]
[Result "0-1"]
[WhiteElo "1969"]
[BlackElo "2163"]
[TimeControl "180+2"]
[EndTime "13:37:37 PDT"]
[Termination "FredddieCroderg won by resignation"]

1. Nf3 {[%clk 0:03:01.9]} 1... g6 {[%clk 0:03:00.3]} 2. d4 {[%clk 0:02:58.1]}
2... Bg7 {[%clk 0:03:00.7]} 3. c4 {[%clk 0:02:59]} 3... d6 {[%clk 0:02:58.7]} 4.
Nc3 {[%clk 0:02:59.7]} 4... Nf6 {[%clk 0:02:57.9]} 5. e4 {[%clk 0:03:00.6]} 5...
O-O {[%clk 0:02:59.4]} 6. Be2 {[%clk 0:03:01.9]} 6... e5 {[%clk 0:03:00]} 7. O-O
{[%clk 0:03:02.1]} 7... Nc6 {[%clk 0:03:01]} 8. d5 {[%clk 0:03:03.2]} 8... Ne7
{[%clk 0:03:02.5]} 9. b4 {[%clk 0:03:04.8]} 9... a5 {[%clk 0:03:02.4]} 10. Ba3
{[%clk 0:03:05.4]} 10... axb4 {[%clk 0:03:03.4]} 11. Bxb4 {[%clk 0:03:07.3]}
11... b6 {[%clk 0:03:04.5]} 12. a4 {[%clk 0:03:08.2]} 12... Re8 {[%clk
0:03:05.6]} 13. Nd2 {[%clk 0:02:24]} 13... Bf8 {[%clk 0:03:04.3]} 14. Nb3 {[%clk
0:02:24.2]} 14... c5 {[%clk 0:03:00.4]} 15. dxc6 {[%clk 0:02:12.5]} 15... Nxc6
{[%clk 0:03:01.3]} 16. Ba3 {[%clk 0:02:13.1]} 16... Be6 {[%clk 0:02:48.5]} 17.
Nb5 {[%clk 0:01:49.8]} 17... Nxe4 {[%clk 0:02:44.2]} 18. Bf3 {[%clk 0:01:43.4]}
18... f5 {[%clk 0:02:44.5]} 19. Qc2 {[%clk 0:01:40.3]} 19... Rxa4 {[%clk
0:02:28.8]} 20. Nd2 {[%clk 0:01:29.3]} 20... Nxd2 {[%clk 0:02:18.7]} 21. Bxc6
{[%clk 0:01:22.5]} 21... Rxc4 {[%clk 0:02:12.1]} 22. Qxd2 {[%clk 0:01:14.3]}
22... Rxc6 {[%clk 0:02:12.1]} 23. Rfd1 {[%clk 0:01:11.6]} 23... d5 {[%clk
0:02:09.2]} 24. Bb2 {[%clk 0:01:12.6]} 24... d4 {[%clk 0:02:08.5]} 25. f4 {[%clk
0:01:11.1]} 25... Bc4 {[%clk 0:01:53.3]} 26. Na7 {[%clk 0:01:05]} 26... Rce6
{[%clk 0:01:43.8]} 27. fxe5 {[%clk 0:00:37.3]} 27... Bc5 {[%clk 0:01:43.5]} 28.
Bxd4 {[%clk 0:00:28.5]} 28... Qc7 {[%clk 0:01:23.5]} 29. Bxc5 {[%clk 0:00:16.7]}
29... Qxc5+ {[%clk 0:01:22.4]} 30. Kh1 {[%clk 0:00:16.9]} 30... Rxe5 {[%clk
0:01:22]} 31. Re1 {[%clk 0:00:17.6]} 31... Qd4 {[%clk 0:01:10.5]} 32. Qxd4
{[%clk 0:00:08]} 32... Rxe1+ {[%clk 0:01:11.4]} 33. Qg1 {[%clk 0:00:05.4]} 33...
Rxg1+ {[%clk 0:01:12.2]} 34. Kxg1 {[%clk 0:00:07.3]} 34... Ra8 {[%clk
0:01:08.1]} 35. Ra3 {[%clk 0:00:08.3]} 35... Kg7 {[%clk 0:01:02.4]} 36. Kf2
{[%clk 0:00:09.1]} 36... h5 {[%clk 0:01:01]} 37. Ke3 {[%clk 0:00:10.3]} 37...
Bf1 {[%clk 0:01:00.7]} 38. g3 {[%clk 0:00:10.8]} 38... Kf6 {[%clk 0:01:00.2]}
39. h4 {[%clk 0:00:10.1]} 39... Bg2 {[%clk 0:00:52.4]} 40. Kf4 {[%clk
0:00:09.6]} 40... Re8 {[%clk 0:00:49]} 41. Ra4 {[%clk 0:00:08]} 41... Re4+
{[%clk 0:00:44.9]} 42. Rxe4 {[%clk 0:00:08.8]} 42... Bxe4 {[%clk 0:00:44.4]} 43.
Nb5 {[%clk 0:00:10.2]} 43... Bd3 {[%clk 0:00:43.6]} 44. Nd6 {[%clk 0:00:11.6]}
44... b5 {[%clk 0:00:43.1]} 45. Ke3 {[%clk 0:00:13]} 45... Bc4 {[%clk
0:00:40.9]} 46. Kd4 {[%clk 0:00:14.4]} 46... Ke6 {[%clk 0:00:40.5]} 47. Ne8
{[%clk 0:00:12.3]} 47... Bf1 {[%clk 0:00:39.2]} 48. Nc7+ {[%clk 0:00:13.4]}
48... Kd6 {[%clk 0:00:38.4]} 49. Ne8+ {[%clk 0:00:14.5]} 49... Kc6 {[%clk
0:00:38.2]} 50. Nf6 {[%clk 0:00:15]} 50... b4 {[%clk 0:00:37.1]} 51. Nh7 {[%clk
0:00:11.3]} 51... Kb5 {[%clk 0:00:37.2]} 52. Nf8 {[%clk 0:00:12]} 52... Ka4
{[%clk 0:00:37.6]} 53. Nxg6 {[%clk 0:00:12.4]} 53... b3 {[%clk 0:00:37.8]} 54.
Kc3 {[%clk 0:00:06.6]} 54... Ka3 {[%clk 0:00:38.9]} 55. Ne5 {[%clk 0:00:02.7]}
55... b2 {[%clk 0:00:39.7]} 56. Nc6 {[%clk 0:00:03]} 56... b1=Q {[%clk
0:00:38.5]} 57. Nd4 {[%clk 0:00:04.9]} 57... Qa1+ {[%clk 0:00:37.3]} 0-1

[Event "*** Titled Tuesday Blitz"]
[Site "Chess.com"]
[Date "2019.08.06"]
[Round "3"]
[White "Tiqr777"]
[Black "Rakesh"]
[Result "1-0"]
[WhiteElo "2559"]
[BlackElo "2432"]
[TimeControl "180+2"]
[EndTime "13:37:43 PDT"]
[Termination "Tiqr777 won by resignation"]

1. c4 {[%clk 0:03:01.9]} 1... e5 {[%clk 0:02:59.4]} 2. Nc3 {[%clk 0:03:02.9]}
2... Nc6 {[%clk 0:03:00.1]} 3. g3 {[%clk 0:03:04]} 3... Nf6 {[%clk 0:02:55.4]}
4. Bg2 {[%clk 0:03:04.9]} 4... d6 {[%clk 0:02:56.2]} 5. d3 {[%clk 0:03:05.5]}
5... Be6 {[%clk 0:02:57.6]} 6. Nf3 {[%clk 0:03:06.6]} 6... Qd7 {[%clk
0:02:59.5]} 7. Rb1 {[%clk 0:03:07.8]} 7... Be7 {[%clk 0:03:00.7]} 8. b4 {[%clk
0:03:07.9]} 8... O-O {[%clk 0:03:02.6]} 9. O-O {[%clk 0:03:08.5]} 9... Rae8
{[%clk 0:03:02.5]} 10. b5 {[%clk 0:03:09.5]} 10... Nd8 {[%clk 0:03:03.9]} 11. e4
{[%clk 0:03:09.2]} 11... Ng4 {[%clk 0:02:58]} 12. Nd5 {[%clk 0:03:06.2]} 12...
f5 {[%clk 0:02:58.5]} 13. Nxe7+ {[%clk 0:03:04.9]} 13... Rxe7 {[%clk 0:02:47]}
14. Ng5 {[%clk 0:03:03.3]} 14... f4 {[%clk 0:02:41.2]} 15. Nxe6 {[%clk
0:03:01.8]} 15... Qxe6 {[%clk 0:02:43.1]} 16. Bh3 {[%clk 0:03:00.4]} 16... f3
{[%clk 0:02:42.7]} 17. d4 {[%clk 0:02:50.7]} 17... Qg6 {[%clk 0:02:38.4]} 18.
Rb3 {[%clk 0:02:16.5]} 18... Qh5 {[%clk 0:02:26.1]} 19. Bxg4 {[%clk 0:02:17.2]}
19... Qxg4 {[%clk 0:02:28]} 20. h3 {[%clk 0:02:17.6]} 20... Qxe4 {[%clk
0:01:18]} 21. Re1 {[%clk 0:02:17.7]} 21... Qf5 {[%clk 0:01:09]} 22. dxe5 {[%clk
0:02:10.6]} 22... Rxe5 {[%clk 0:00:59.8]} 23. Rxe5 {[%clk 0:02:10.7]} 23... Qxe5
{[%clk 0:00:52.4]} 24. Bb2 {[%clk 0:02:06.4]} 24... Qf5 {[%clk 0:00:35.8]} 25.
Re3 {[%clk 0:02:01.7]} 25... Ne6 {[%clk 0:00:31.5]} 26. Qd5 {[%clk 0:01:56.5]}
26... Qb1+ {[%clk 0:00:18.6]} 27. Kh2 {[%clk 0:01:56.5]} 27... Qxb2 {[%clk
0:00:19.7]} 28. Qxe6+ {[%clk 0:01:47.7]} 28... Kh8 {[%clk 0:00:20.7]} 29. Rxf3
{[%clk 0:01:47.3]} 29... Rg8 {[%clk 0:00:21.5]} 30. a3 {[%clk 0:01:44.7]} 30...
Qe5 {[%clk 0:00:18.6]} 31. Qxe5 {[%clk 0:01:43.3]} 31... dxe5 {[%clk 0:00:20.5]}
32. Rf7 {[%clk 0:01:44.9]} 32... Rc8 {[%clk 0:00:16]} 33. Re7 {[%clk 0:01:46.1]}
33... Kg8 {[%clk 0:00:13.6]} 34. Rxe5 {[%clk 0:01:47.2]} 34... Kf7 {[%clk
0:00:15]} 35. Rd5 {[%clk 0:01:47.6]} 35... Ke6 {[%clk 0:00:15.4]} 36. a4 {[%clk
0:01:48.3]} 36... c6 {[%clk 0:00:16.7]} 37. Rd4 {[%clk 0:01:48.5]} 37... cxb5
{[%clk 0:00:17.6]} 38. cxb5 {[%clk 0:01:50.1]} 38... Rc2 {[%clk 0:00:18.7]} 39.
Kg2 {[%clk 0:01:51.3]} 39... Rc7 {[%clk 0:00:17.7]} 40. h4 {[%clk 0:01:51.8]}
40... Rf7 {[%clk 0:00:15]} 41. g4 {[%clk 0:01:50.9]} 41... Ke5 {[%clk
0:00:16.2]} 42. Rc4 {[%clk 0:01:49.9]} 42... Kd5 {[%clk 0:00:11.4]} 43. Rb4
{[%clk 0:01:50.8]} 43... Kc5 {[%clk 0:00:12.5]} 44. Re4 {[%clk 0:01:51.3]} 44...
Kd5 {[%clk 0:00:13.8]} 45. f3 {[%clk 0:01:52.7]} 45... a6 {[%clk 0:00:09.3]} 46.
bxa6 {[%clk 0:01:51.4]} 46... bxa6 {[%clk 0:00:11.2]} 47. Kg3 {[%clk 0:01:52.8]}
47... Rb7 {[%clk 0:00:11.7]} 48. g5 {[%clk 0:01:49.7]} 48... g6 {[%clk
0:00:10.6]} 49. Kg4 {[%clk 0:01:49.8]} 49... Rf7 {[%clk 0:00:05.7]} 50. Rb4
{[%clk 0:01:44.5]} 50... Rc7 {[%clk 0:00:02.7]} 51. f4 {[%clk 0:01:30.3]} 51...
Kc5 {[%clk 0:00:02.9]} 52. Rb1 {[%clk 0:01:29.7]} 52... Re7 {[%clk 0:00:03.8]}
53. a5 {[%clk 0:01:30.3]} 53... Kc4 {[%clk 0:00:02.9]} 54. Rb6 {[%clk
0:01:31.2]} 54... Re2 {[%clk 0:00:03.8]} 55. Rxa6 {[%clk 0:01:31.6]} 55... Rg2+
{[%clk 0:00:05]} 56. Kf3 {[%clk 0:01:32.5]} 56... Rh2 {[%clk 0:00:06.3]} 57. Kg3
{[%clk 0:01:33.5]} 57... Rb2 {[%clk 0:00:06.6]} 58. Ra7 {[%clk 0:01:34.5]} 58...
Rb7 {[%clk 0:00:07.4]} 59. Rxb7 {[%clk 0:01:35.2]} 1-0

[Event "*** Titled Tuesday Blitz"]
[Site "Chess.com"]
[Date "2019.08.06"]
[Round "3"]
[White "jefferyx"]
[Black "KazakhFighter04"]
[Result "1/2-1/2"]
[WhiteElo "2922"]
[BlackElo "2736"]
[TimeControl "180+2"]
[EndTime "13:37:49 PDT"]
[Termination "Game drawn - insufficient material"]

1. d4 {[%clk 0:03:01.9]} 1... Nf6 {[%clk 0:03:00.6]} 2. Nf3 {[%clk 0:03:03.2]}
2... e6 {[%clk 0:03:02]} 3. c4 {[%clk 0:03:04.1]} 3... d5 {[%clk 0:03:02.8]} 4.
g3 {[%clk 0:03:05.5]} 4... dxc4 {[%clk 0:03:01.3]} 5. Bg2 {[%clk 0:03:06.9]}
5... c5 {[%clk 0:03:02.9]} 6. O-O {[%clk 0:03:06.2]} 6... Nc6 {[%clk 0:03:03.5]}
7. Ne5 {[%clk 0:03:02.5]} 7... Bd7 {[%clk 0:03:00.4]} 8. Nxc4 {[%clk 0:03:03.8]}
8... cxd4 {[%clk 0:02:58]} 9. Bf4 {[%clk 0:03:00.3]} 9... Rc8 {[%clk 0:02:43.7]}
10. Nbd2 {[%clk 0:02:48.6]} 10... Be7 {[%clk 0:02:38.2]} 11. Nd6+ {[%clk
0:02:49.8]} 11... Bxd6 {[%clk 0:02:39.6]} 12. Bxd6 {[%clk 0:02:51.7]} 12... e5
{[%clk 0:02:39.9]} 13. Rc1 {[%clk 0:02:13.5]} 13... Be6 {[%clk 0:02:32.1]} 14.
Bxc6+ {[%clk 0:02:11.8]} 14... bxc6 {[%clk 0:02:29.8]} 15. Bxe5 {[%clk
0:02:02.7]} 15... O-O {[%clk 0:02:19.7]} 16. Qa4 {[%clk 0:01:31.2]} 16... c5
{[%clk 0:02:13.3]} 17. Bxf6 {[%clk 0:01:26.7]} 17... Qxf6 {[%clk 0:02:13.7]} 18.
Qxa7 {[%clk 0:01:27.8]} 18... c4 {[%clk 0:01:55.2]} 19. Rfd1 {[%clk 0:01:18.5]}
19... Ra8 {[%clk 0:01:30.6]} 20. Qb7 {[%clk 0:01:17.8]} 20... Rab8 {[%clk
0:01:22.6]} 21. Qe4 {[%clk 0:01:15.9]} 21... c3 {[%clk 0:01:17.2]} 22. bxc3
{[%clk 0:01:16.5]} 22... dxc3 {[%clk 0:01:18.6]} 23. Nb3 {[%clk 0:00:59.7]}
23... Bxb3 {[%clk 0:01:17.4]} 24. axb3 {[%clk 0:01:01.6]} 24... Rxb3 {[%clk
0:01:18.7]} 25. Qc4 {[%clk 0:01:03.3]} 25... Rb2 {[%clk 0:01:12.1]} 26. Re1
{[%clk 0:00:49.4]} 26... c2 {[%clk 0:00:38.4]} 27. Rxc2 {[%clk 0:00:49.9]} 27...
Rxc2 {[%clk 0:00:40.3]} 28. Qxc2 {[%clk 0:00:51.6]} 28... g6 {[%clk 0:00:41.3]}
29. Rd1 {[%clk 0:00:51]} 29... h5 {[%clk 0:00:41]} 30. Qc4 {[%clk 0:00:43.3]}
30... Re8 {[%clk 0:00:40.7]} 31. h4 {[%clk 0:00:35.7]} 31... Qe6 {[%clk
0:00:40.8]} 32. Qxe6 {[%clk 0:00:36.9]} 32... Rxe6 {[%clk 0:00:42.7]} 33. Kf1
{[%clk 0:00:38.6]} 33... Kg7 {[%clk 0:00:43.5]} 34. Rd4 {[%clk 0:00:39.5]} 34...
Ra6 {[%clk 0:00:44]} 35. Kg2 {[%clk 0:00:39.9]} 35... Ra2 {[%clk 0:00:44.3]} 36.
Kf3 {[%clk 0:00:41.3]} 36... Ra3+ {[%clk 0:00:45.7]} 37. Kf4 {[%clk 0:00:41.6]}
37... Ra2 {[%clk 0:00:46.3]} 38. Kf3 {[%clk 0:00:42.6]} 38... Ra3+ {[%clk
0:00:47.5]} 39. Rd3 {[%clk 0:00:44.5]} 39... Ra2 {[%clk 0:00:48.4]} 40. Rb3
{[%clk 0:00:45.6]} 40... Rc2 {[%clk 0:00:47.7]} 41. e4 {[%clk 0:00:46.7]} 41...
Ra2 {[%clk 0:00:47.4]} 42. Ke3 {[%clk 0:00:48.2]} 42... Rc2 {[%clk 0:00:48.2]}
43. f3 {[%clk 0:00:49.7]} 43... Rg2 {[%clk 0:00:48.4]} 44. Kf4 {[%clk
0:00:51.3]} 44... Kg8 {[%clk 0:00:49.2]} 45. Rb7 {[%clk 0:00:52.8]} 45... Kg7
{[%clk 0:00:46.6]} 46. Ra7 {[%clk 0:00:53.4]} 46... Kg8 {[%clk 0:00:43.8]} 47.
e5 {[%clk 0:00:41.1]} 47... Kf8 {[%clk 0:00:44.8]} 48. Ra6 {[%clk 0:00:24.4]}
48... Kg7 {[%clk 0:00:42.8]} 49. Rd6 {[%clk 0:00:22.9]} 49... Rg1 {[%clk
0:00:41.2]} 50. Rd7 {[%clk 0:00:23.2]} 50... Kf8 {[%clk 0:00:37.3]} 51. g4
{[%clk 0:00:20]} 51... hxg4 {[%clk 0:00:36]} 52. fxg4 {[%clk 0:00:21.9]} 52...
Re1 {[%clk 0:00:32.9]} 53. Rd5 {[%clk 0:00:18.8]} 53... Kg7 {[%clk 0:00:32.2]}
54. Kg5 {[%clk 0:00:20.2]} 54... Re4 {[%clk 0:00:25.2]} 55. Ra5 {[%clk 0:00:21]}
55... Re1 {[%clk 0:00:23.4]} 56. Rb5 {[%clk 0:00:22.4]} 56... Re4 {[%clk
0:00:24.3]} 57. h5 {[%clk 0:00:23.5]} 57... Rxe5+ {[%clk 0:00:19.9]} 58. Rxe5
{[%clk 0:00:21.3]} 58... f6+ {[%clk 0:00:21.4]} 59. Kf4 {[%clk 0:00:20.8]} 59...
fxe5+ {[%clk 0:00:22.6]} 60. Kxe5 {[%clk 0:00:22.7]} 60... gxh5 {[%clk
0:00:23.9]} 61. gxh5 {[%clk 0:00:24.6]} 61... Kh6 {[%clk 0:00:25.2]} 62. Ke4
{[%clk 0:00:26.5]} 62... Kxh5 {[%clk 0:00:26.4]} 1/2-1/2

[Event "*** Titled Tuesday Blitz"]
[Site "Chess.com"]
[Date "2019.08.06"]
[Round "3"]
[White "Vuk2000"]
[Black "chickencrossroad"]
[Result "1-0"]
[WhiteElo "2718"]
[BlackElo "2491"]
[TimeControl "180+2"]
[EndTime "13:37:51 PDT"]
[Termination "Vuk2000 won by resignation"]

1. d4 {[%clk 0:03:01.9]} 1... Nf6 {[%clk 0:02:59.8]} 2. Bg5 {[%clk 0:03:02.6]}
2... d5 {[%clk 0:02:55.3]} 3. Bxf6 {[%clk 0:03:03.6]} 3... exf6 {[%clk
0:02:57.1]} 4. e3 {[%clk 0:03:05.2]} 4... Bd6 {[%clk 0:02:57.9]} 5. c4 {[%clk
0:03:06.3]} 5... dxc4 {[%clk 0:02:59.3]} 6. Bxc4 {[%clk 0:03:07.5]} 6... O-O
{[%clk 0:03:00.9]} 7. Nc3 {[%clk 0:03:08.4]} 7... Bf5 {[%clk 0:02:54.5]} 8. Nf3
{[%clk 0:03:06.1]} 8... Nd7 {[%clk 0:02:54.4]} 9. Nh4 {[%clk 0:03:03.9]} 9...
Bg6 {[%clk 0:02:38.1]} 10. Nxg6 {[%clk 0:03:03]} 10... hxg6 {[%clk 0:02:40]} 11.
h4 {[%clk 0:02:55.9]} 11... Nb6 {[%clk 0:02:38.3]} 12. Bb3 {[%clk 0:02:50]}
12... Qd7 {[%clk 0:02:10.5]} 13. Qd3 {[%clk 0:02:29.2]} 13... f5 {[%clk
0:02:10.2]} 14. h5 {[%clk 0:02:29.7]} 14... g5 {[%clk 0:02:02]} 15. g4 {[%clk
0:02:24.9]} 15... c5 {[%clk 0:01:30.7]} 16. dxc5 {[%clk 0:01:30.5]} 16... Bxc5
{[%clk 0:01:29.8]} 17. Qxd7 {[%clk 0:01:29.6]} 17... Nxd7 {[%clk 0:01:31.7]} 18.
O-O-O {[%clk 0:01:30.5]} 18... Nf6 {[%clk 0:01:14.7]} 19. gxf5 {[%clk
0:01:25.6]} 19... Kh7 {[%clk 0:01:06.5]} 20. Bd5 {[%clk 0:00:45.8]} 20... Rab8
{[%clk 0:00:53.7]} 21. Bf3 {[%clk 0:00:45.7]} 21... g4 {[%clk 0:00:47.7]} 22.
Be2 {[%clk 0:00:39.5]} 22... b5 {[%clk 0:00:47.3]} 23. Bd3 {[%clk 0:00:23.9]}
23... Rfe8 {[%clk 0:00:42.4]} 24. Ne2 {[%clk 0:00:24.1]} 24... Bd6 {[%clk
0:00:25.7]} 25. Kb1 {[%clk 0:00:21.7]} 25... Be5 {[%clk 0:00:25.2]} 26. Bc2
{[%clk 0:00:21.8]} 26... Kh6 {[%clk 0:00:22.4]} 27. Bb3 {[%clk 0:00:21.9]} 27...
Re7 {[%clk 0:00:22.4]} 28. Bc2 {[%clk 0:00:15.3]} 28... Nxh5 {[%clk 0:00:21.5]}
29. Rdg1 {[%clk 0:00:13.9]} 29... g6 {[%clk 0:00:13.7]} 30. fxg6 {[%clk
0:00:14.3]} 30... fxg6 {[%clk 0:00:15.6]} 31. Rxg4 {[%clk 0:00:15.7]} 31... Rb6
{[%clk 0:00:16.6]} 32. Ng3 {[%clk 0:00:11.9]} 32... Bxg3 {[%clk 0:00:07.2]} 33.
Rxg3 {[%clk 0:00:13.8]} 33... Ree6 {[%clk 0:00:04.2]} 34. Rgh3 {[%clk
0:00:12.7]} 34... Re5 {[%clk 0:00:05.4]} 35. f4 {[%clk 0:00:12.8]} 35... Rc5
{[%clk 0:00:06.8]} 36. f5 {[%clk 0:00:13.3]} 36... Kg7 {[%clk 0:00:03.9]} 37.
fxg6 {[%clk 0:00:13.8]} 37... Nf6 {[%clk 0:00:05.5]} 38. Rf1 {[%clk 0:00:09.2]}
38... Rbc6 {[%clk 0:00:06.6]} 39. Bd3 {[%clk 0:00:10.5]} 39... Rd5 {[%clk
0:00:07.4]} 40. Bc2 {[%clk 0:00:09.2]} 40... Rd2 {[%clk 0:00:08.2]} 41. Bf5
{[%clk 0:00:08.7]} 41... b4 {[%clk 0:00:03.8]} 42. Rhf3 {[%clk 0:00:08.5]} 42...
b3 {[%clk 0:00:04.9]} 43. axb3 {[%clk 0:00:09.5]} 43... Rb6 {[%clk 0:00:06.3]}
44. e4 {[%clk 0:00:10.2]} 44... a5 {[%clk 0:00:04]} 45. Rc3 {[%clk 0:00:11.2]}
45... a4 {[%clk 0:00:03.9]} 46. Rc2 {[%clk 0:00:10.9]} 46... Rd4 {[%clk
0:00:04]} 47. bxa4 {[%clk 0:00:11.5]} 47... Nxe4 {[%clk 0:00:04]} 48. Rc7+
{[%clk 0:00:12]} 48... Kh6 {[%clk 0:00:03.5]} 49. Rh1+ {[%clk 0:00:08.5]} 49...
Kg5 {[%clk 0:00:04.3]} 50. Bxe4 {[%clk 0:00:09.1]} 50... Rxe4 {[%clk 0:00:05.3]}
51. g7 {[%clk 0:00:09.9]} 51... Re8 {[%clk 0:00:02.8]} 52. Rg1+ {[%clk
0:00:10.4]} 52... Kf4 {[%clk 0:00:02.5]} 53. g8=Q {[%clk 0:00:11.1]} 53... Rxg8
{[%clk 0:00:02.6]} 54. Rxg8 {[%clk 0:00:13]} 1-0